[Event "GER-ch Youth-ODJM 2022 A"]
[Site "Willingen"]
[Date "2022.06.09"]
[Round "7.11"]
[White "Kracht, Raphael"]
[Black "Brunner, Tobias"]
[Result "0-1"]
[ECO "B10"]
[WhiteElo "2086"]
[BlackElo "2007"]
[Annotator "TA"]
[PlyCount "88"]
[EventDate "2022.06.05"]
[EventType "swiss"]
[EventRounds "9"]
[EventCountry "GER"]
[SourceTitle "playchess.com"]
[Source "ChessBase"]
[SourceQuality "1"]
[TimeControl "40/4500+30:900+30"]

{[%evp 9,88,-13,12,3,38,39,43,36,58,63,61,62,70,64,79,59,59,54,37,-148,-160,-196,-189,-195,-201,-200,-181,-181,-181,-181,-181,-305,-182,-399,-393,-376,-352,-431,-397,-399,-403,-374,-386,-411,-333,-419,-314,-517,-308,-297,-309,-293,-287,-282,-269,-660,-643,-1402,-1372,-1561,-683,-1336,-1294,-1700,-1688,-1571,-1379,-1275,-960,-939,-929,-929,-929,-29982,-29983,-29983,-29984,-29984,-29985,-29999,317]} 1. e4 {[%emt 0:00:00]} c6 {[%emt 0:00:00]} 2. Ne2 {[%emt 0:00:00]} d5 {[%emt 0:00:00]} 3. e5 {[%emt 0:00:00]} c5 {[%emt 0:00:00]} 4. d4 {[%emt 0:00:00]} Nc6 {[%emt 0:00:00]} 5. c3 {[%emt 0:00:00]} Bf5 {[%emt 0:00:00]} 6. Ng3 {[%emt 0:00:00] B12: Caro-Kann: Advance Variation.} Bxb1 {[%emt 0:00:00]} 7. Rxb1 {[%emt 0:00:00]} e6 {[%emt 0:00:00]} 8. a3 {[%emt 0:00:00] White is slightly better.} Qb6 {[%emt 0:00:00][%cal Rc5d4]} 9. Be3 {[%emt 0:00:00]} cxd4 {[%emt 0:00:00]} 10. cxd4 {[%emt 0:00:02]} g6 {[%emt 0:02:36]} 11. Bd3 {[%emt 0:04:44] [#]} Bg7 $146 {[%emt 0:01:33]} ({Predecessor:} 11... h5 12. Ne2 Nh6 13. Nf4 Ng4 14. O-O Bh6 15. Nxg6 fxg6 16. Bxg6+ Kd7 17. Bxh6 Nxh6 {0-1 (45) Krishna,U (1843)-Meshkov,Y (2356) Zaragoza 2013}) 12. h4 {[%emt 0:03:50]} h5 {[%emt 0:03:36]} 13. Ne2 {[%emt 0:00:41]} Nh6 {[%emt 0:01:26]} 14. f3 $2 {[%emt 0:01:48] Inhibits Ng4.} (14. Bg5 $14 {stays ahead.}) 14... Nxe5 $1 $17 {[%emt 0:09:27] Black continues to play with concentration.} 15. Bf2 {[%emt 0:18:35]} Nxd3+ {[%emt 0:07:08]} 16. Qxd3 {[%emt 0:00:06]} O-O {[%emt 0:00:16]} 17. O-O {[%emt 0:01:57]} Rac8 {[%emt 0:00:46]} 18. b3 {[%emt 0:02:45]} Rc6 {[%emt 0:03:05]} 19. Rfc1 {[%emt 0:03:34]} Rfc8 {[%emt 0:00:14]} 20. Rc5 {[%emt 0:00:12] [#]} (20. Rxc6 {was worth a try.} Rxc6 21. g3) 20... Bf8 {[%emt 0:05:18]} ({Stronger than} 20... Rxc5 21. dxc5 Qc7 22. Nd4 $17) (20... Bxd4 $142 $1 {[%mdl 512]} 21. Bxd4 (21. Nxd4 Rxc5) 21... Rxc5) 21. Rb5 $2 {[%emt 0:03:31]} (21. Rxc6 Rxc6 22. a4) 21... Qc7 $19 {[%emt 0:03:51]} 22. Bg3 {[%emt 0:00:50]} Qd7 {[%emt 0:04:24]} 23. Be5 {[%emt 0:01:12]} a6 {[%emt 0:02:44]} 24. Ra5 {[%emt 0:01:02]} Qd8 {[%emt 0:00:37][%csl LRa5,LRh4]} 25. b4 {[%emt 0:01:08]} Qxh4 {[%emt 0:10:06]} 26. b5 {[%emt 0:01:34]} axb5 {[%emt 0:01:06] aiming for ...Nf5.} 27. Raxb5 {[%emt 0:00:08]} Ra6 {[%emt 0:02:15]} ({Wrong is} 27... Rc2 $2 28. Rxb7 Nf5 29. Rb8 $19) 28. R1b3 $2 {[%emt 0:04:32]} (28. Rxb7 Rxa3 29. Qd2) 28... Rca8 {[%emt 0:04:25][%cal Ra6a3,Bc8a8,Ba8a3,Ba3a1][%mdl 32]} 29. Bg3 {[%emt 0:11:26]} Qd8 {[%emt 0:04:33]} 30. Rxb7 {[%emt 0:01:21]} Rxa3 {[%emt 0:02:15]} 31. Rxa3 Rxa3 {[%emt 0:00:09]} 32. Qb5 {[%emt 0:01:05]} (32. Qxa3 Bxa3 33. Rb8) 32... Ra1+ {[%emt 0:01:32]} 33. Kf2 {[%emt 0:02:26]} Qf6 {[%emt 0:01:00][%csl Gh5][%cal Rh6g4]} 34. Bf4 {[%emt 0:01:56]} g5 {[%emt 0:03:27]} (34... Qh4+ $142 35. Ke3 Nf5+ 36. Kd3 Qe1) 35. Qb2 {[%emt 0:00:10]} Rh1 {[%emt 0:01:53]} 36. Ng3 {[%emt 0:05:06]} Ng4+ {[%emt 0:02:14]} 37. Ke2 {[%emt 0:00:34]} Rh2 {[%emt 0:03:37]} 38. Nxh5 {[%emt 0:01:25]} Rxh5 {[%emt 0:00:21]} 39. fxg4 {[%emt 0:00:07]} Rh1 {[%emt 0:00:07]} ({Worse is} 39... Qxf4 40. gxh5 Qg3 41. Kd1 $15) 40. Bg3 {[%emt 0:00:49]} Qg6 {[%emt 0:01:21] ( -> ...Qe4+)} 41. Kf2 Qd3 {[%emt 0:15:51][%csl Gd3][%cal Rh1f1] Black mates.} 42. Qe2 {[%emt 0:18:22]} Qxd4+ {[%emt 0:00:32]} 43. Qe3 {[%emt 0:00:15] [#]} Rf1+ $3 {[%emt 0:00:44][%mdl 512]} 44. Ke2 (44. Kxf1 Qxe3) 44... Re1+ $4 {[%mdl 40960] Weighted Error Value: White=1.05/Black=0.36. Loss on time!?} 0-1

[Event "GER-ch Youth-ODJM 2022 A"]
[Site "Willingen"]
[Date "2022.06.09"]
[Round "7.12"]
[White "François, Yannick"]
[Black "Lohr, Maximilian"]
[Result "1/2-1/2"]
[ECO "A21"]
[WhiteElo "1867"]
[BlackElo "2080"]
[Annotator "TA"]
[PlyCount "56"]
[EventDate "2022.06.05"]
[EventType "swiss"]
[EventRounds "9"]
[EventCountry "GER"]
[SourceTitle "playchess.com"]
[Source "ChessBase"]
[SourceQuality "1"]
[TimeControl "40/4500+30:900+30"]

{[%evp 21,56,7,11,0,27,0,0,0,0,0,13,0,69,25,32,25,54,47,64,44,43,29,107,106,107,97,132,105,136,129,124,128,128,76,79,81,86]} 1. c4 {[%emt 0:00:00]} e5 {[%emt 0:00:00]} 2. Nc3 {[%emt 0:00:00]} Bb4 {[%emt 0:00:00]} 3. Nd5 {[%emt 0:00:00]} Bc5 {[%emt 0:00:00]} 4. e3 {[%emt 0:00:00]} c6 {[%emt 0:00:00]} 5. Nc3 {[%emt 0:00:00]} d5 {[%emt 0:00:00]} 6. cxd5 {[%emt 0:00:00]} cxd5 {[%emt 0:00:00]} 7. d4 {[%emt 0:00:00]} exd4 {[%emt 0:00:00]} 8. exd4 {[%emt 0:00:00]} Be7 {[%emt 0:00:00]} 9. Nf3 {[%emt 0:00:00]} Nf6 {[%emt 0:00:00]} 10. Be2 {[%emt 0:00:00]} Nc6 {[%emt 0:00:00]} 11. O-O {[%emt 0:00:00]} O-O {[%emt 0:00:00]} 12. Re1 {[%emt 0:00:00] B14: Caro-Kann: Panov-Botvinnik Attack with 5...e6 and 5...g6.} Ne4 {[%emt 0:00:00] [#]} 13. Ne5 $146 {[%emt 0:00:16]} ({Predecessor:} 13. Bd3 Nxc3 14. bxc3 Bg4 15. Bc2 Bh5 16. Bf4 Bd6 17. Bxd6 Qxd6 18. Re3 Rae8 19. Qe2 Re6 20. Re1 Rfe8 21. Qd3 {0-1 (48) Ursic,S (2089)-Kersic,M (2148) Nova Gorica 2007}) 13... Nxc3 {[%emt 0:00:00]} 14. bxc3 {[%emt 0:00:11] The position is equal.} Nxe5 {[%emt 0:00:00]} 15. dxe5 {[%emt 0:00:05]} Be6 {[%emt 0:00:00]} 16. Be3 {[%emt 0:00:42]} f5 {[%emt 0:10:23]} (16... Rc8 $11) 17. exf6 {[%emt 0:03:48]} Bxf6 {[%emt 0:00:07]} 18. Bd4 {[%emt 0:00:14][%cal Oe2a6]} Qd7 {[%emt 0:19:30]} 19. Bf3 {[%emt 0:01:28]} Kh8 {[%emt 0:00:39]} 20. Rb1 {[%emt 0:02:08]} Bg8 {[%emt 0:05:08]} 21. Qd3 {[%emt 0:04:04]} b6 {[%emt 0:02:49]} (21... h6 $11 {keeps the balance.}) 22. Bxf6 $16 {[%emt 0:02:24] White is more active.} Rxf6 {[%emt 0:00:39] [#]} 23. c4 $1 {[%emt 0:00:16]} Rd6 {[%emt 0:01:34]} 24. Rbd1 {[%emt 0:00:34]} Rd8 {[%emt 0:05:24]} 25. cxd5 {[%emt 0:00:27]} h6 {[%emt 0:00:17][%cal Rg8d5] White is better.} (25... Bxd5 $2 26. Bxd5 h6 27. Re5 $18) 26. Re5 {[%emt 0:03:22]} Qa4 {[%emt 0:03:47]} 27. Qb3 {[%emt 0:03:30]} (27. Qe2 $142) 27... Qxb3 {[%emt 0:06:56]} 28. axb3 {[%emt 0:00:10]} a5 {[%emt 0:01:44] Weighted Error Value: White=0.13 (very precise) /Black=0.25 (precise)} 1/2-1/2

[Event "GER-ch Youth-ODJM 2022 A"]
[Site "Willingen"]
[Date "2022.06.09"]
[Round "7.13"]
[White "Hofmann, Lorenz"]
[Black "Jenner, Meikel"]
[Result "1-0"]
[ECO "D00"]
[WhiteElo "2056"]
[BlackElo "1981"]
[Annotator "TA"]
[PlyCount "63"]
[EventDate "2022.06.05"]
[EventType "swiss"]
[EventRounds "9"]
[EventCountry "GER"]
[SourceTitle "playchess.com"]
[Source "ChessBase"]
[SourceQuality "1"]
[TimeControl "40/4500+30:900+30"]

{[%evp 9,63,0,1,-18,5,1,59,45,68,20,67,16,25,34,31,18,23,-8,89,58,168,151,193,186,523,109,92,87,121,107,115,63,116,116,130,128,127,68,81,67,217,228,293,296,355,265,292,305,299,278,276,193,795,789,767,772]} 1. d4 {[%emt 0:00:00]} d5 {[%emt 0:00:00]} 2. Nc3 {[%emt 0:00:00]} Nf6 {[%emt 0:00:00]} 3. Bf4 {[%emt 0:00:00]} c6 {[%emt 0:00:00]} 4. e3 {[%emt 0:00:00]} g6 {[%emt 0:00:00]} 5. Qd2 {[%emt 0:00:00]} Bg7 {[%emt 0:00:00]} 6. f3 {[%emt 0:00:00] D00: 1 d4 d5: Unusual lines.} Nh5 {[%emt 0:00:00]} 7. Bg5 {[%emt 0:00:00] [#]} f6 $146 {[%emt 0:00:00]} (7... h6 $11 8. Bh4 Nd7) ({Predecessor:} 7... f5 8. O-O-O Qa5 9. a3 b5 10. Bxe7 Qc7 11. Bc5 a5 12. Bxb5 cxb5 13. Nxb5 Qc6 {1-0 (28) Cayon,R-Royet,G Barranquilla 1999}) 8. Bh4 $14 {[%emt 0:00:00] g4 is the strong threat. White is slightly better.} Bh6 {[%emt 0:00:00]} 9. f4 {[%emt 0:00:00]} (9. O-O-O $14 {might be stronger.}) 9... Qd6 {[%emt 0:02:37]} (9... O-O $11) 10. Bg3 {[%emt 0:10:08]} ({Better is} 10. h3 $14) 10... b5 $11 {[%emt 0:12:17]} 11. Be2 {[%emt 0:03:31]} Nxg3 {[%emt 0:00:23]} 12. hxg3 {[%emt 0:00:01]} Bg7 {[%emt 0:00:07]} 13. Bd3 {[%emt 0:09:16][%cal Oh1h7]} e5 {[%emt 0:01:35]} (13... O-O $11) 14. Rxh7 $1 $16 {[%emt 0:04:39] White is more active.} Rxh7 {[%emt 0:01:27]} ({Black should try} 14... O-O $1 $14 15. dxe5 (15. Bxg6 f5 $17) 15... fxe5) 15. Bxg6+ $18 {[%emt 0:00:34]} Kf8 {[%emt 0:00:30]} 16. Bxh7 {[%emt 0:04:34]} f5 $2 {[%emt 0:00:10]} (16... e4 17. Qe2 Nd7) 17. g4 $2 {[%emt 0:01:12]} (17. dxe5 $18 {and the rest is easy.} Qh6 18. Nxd5 $1 {[%mdl 512]} cxd5 19. Qxd5) 17... exd4 $16 {[%emt 0:03:10]} 18. exd4 {[%emt 0:00:15]} fxg4 {[%emt 0:02:58] [#]} 19. O-O-O $1 {[%emt 0:00:33]} Nd7 {[%emt 0:00:56]} 20. Kb1 {[%emt 0:09:10]} (20. Nge2 $16) 20... Nf6 {[%emt 0:01:03]} (20... Nb6 $14) 21. Bd3 {[%emt 0:02:19]} a5 {[%emt 0:00:58]} 22. Nge2 {[%emt 0:02:30]} a4 {[%emt 0:00:35]} 23. a3 {[%emt 0:02:25]} (23. Re1 $16) 23... b4 $14 {[%emt 0:05:34]} 24. axb4 {[%emt 0:00:06]} a3 {[%emt 0:00:06] This move loses the game for Black.} (24... Qxb4 $14 25. Ne4 Qxd2 26. Nxd2 Kf7) 25. b3 $18 {[%emt 0:00:28]} a2+ {[%emt 0:02:21]} 26. Nxa2 {[%emt 0:00:08]} Qc7 {[%emt 0:02:24]} 27. Rh1 {[%emt 0:00:55]} Qa7 {[%emt 0:01:26]} 28. c3 {[%emt 0:00:11]} Ne4 {[%emt 0:00:50]} 29. Bxe4 {[%emt 0:01:16]} dxe4 {[%emt 0:00:05]} 30. f5 {[%emt 0:04:01]} Bxf5 $2 {[%emt 0:01:04]} (30... e3 31. Qc2 Bf6) 31. Rf1 {[%emt 0:00:40]} Qf7 {[%emt 0:01:19]} 32. Qc2 {[%emt 0:00:21] Weighted Error Value: White=0.51/Black=0.46} 1-0

[Event "GER-ch Youth-ODJM 2022 A"]
[Site "Willingen"]
[Date "2022.06.09"]
[Round "7.14"]
[White "Weigand, Anton"]
[Black "Irkilmez, Yakub"]
[Result "1/2-1/2"]
[ECO "C00"]
[WhiteElo "1872"]
[BlackElo "2169"]
[Annotator "TA"]
[PlyCount "103"]
[EventDate "2022.06.05"]
[EventType "swiss"]
[EventRounds "9"]
[EventCountry "GER"]
[SourceTitle "playchess.com"]
[Source "ChessBase"]
[SourceQuality "1"]
[TimeControl "40/4500+30:900+30"]

{[%evp 10,103,-10,-20,0,6,20,22,17,-48,-41,-42,-42,-87,-87,-87,-79,-88,-79,-85,-80,-99,-103,-143,-135,-170,-141,-202,-206,-181,-147,-196,-199,-232,-225,-222,-214,-210,-194,-192,-166,-174,-174,-173,-185,-182,-177,-179,-168,-165,-156,-143,0,-350,-351,-350,-350,-333,-291,-300,-293,-293,-273,-259,-246,-390,-390,-376,-304,-379,-368,-427,-407,-602,-602,-601,-594,-533,-495,-429,-409,-900,-596,-754,-596,-353,-333,-330,-291,-258,-174,-29963,-29966,-5549,-12079,-29981]} 1. e4 {[%emt 0:00:00]} e6 {[%emt 0:00:00]} 2. d4 {[%emt 0:00:00]} d5 {[%emt 0:00:00]} 3. Bd3 {[%emt 0:00:00]} dxe4 {[%emt 0:00:00]} 4. Bxe4 {[%emt 0:00:00]} Nf6 {[%emt 0:00:00]} 5. Bf3 {[%emt 0:00:00]} c5 {[%emt 0:00:00]} 6. Ne2 {[%emt 0:00:00]} Nc6 {[%emt 0:00:00][%cal Rc6d4] C01: French: Exchange Variation.} 7. Be3 {[%emt 0:00:00]} e5 {[%emt 0:00:00] [#] ...e4 is the strong threat.} 8. Bxc6+ {[%emt 0:01:01]} bxc6 {[%emt 0:00:00] The position is equal.} 9. c3 {[%emt 0:05:46]} ({White should play} 9. dxe5 $11 Qxd1+ 10. Kxd1) 9... cxd4 $15 {[%emt 0:05:53]} 10. cxd4 {[%emt 0:00:09]} c5 {[%emt 0:00:51] [#]} 11. dxc5 $146 {[%emt 0:08:28]} ({Predecessor:} 11. dxe5 Qxd1+ 12. Kxd1 Ng4 13. Nd2 Nxe5 14. Nf4 Rb8 15. b3 Bb7 16. Re1 f6 17. Ne6 {0-1 (36) Michelle,C (2088)-Gomes,M (2325) Chennai 2011}) 11... Qxd1+ {[%emt 0:01:30]} 12. Kxd1 {[%emt 0:00:15]} Nd5 {[%emt 0:02:36]} 13. c6 {[%emt 0:04:43]} Nxe3+ {[%emt 0:10:07]} 14. fxe3 {[%emt 0:00:07]} Ba6 {[%emt 0:03:35]} 15. c7 {[%emt 0:07:56]} Rc8 {[%emt 0:01:18]} 16. Nec3 {[%emt 0:02:39]} Rxc7 {[%emt 0:01:47]} 17. Kc2 {[%emt 0:06:44]} Be7 {[%emt 0:05:50]} 18. Rd1 {[%emt 0:02:02]} (18. Nd2 $17 {might work better.}) 18... O-O $19 {[%emt 0:01:19]} 19. Nd2 {[%emt 0:01:12]} Rb8 {[%emt 0:11:30]} 20. Rac1 {[%emt 0:04:30]} (20. e4 $17) 20... Bg5 {[%emt 0:12:01] A strong pair of Bishops.} 21. e4 {[%emt 0:06:08]} Be2 {[%emt 0:05:05]} 22. Re1 {[%emt 0:00:14]} Bxd2 {[%emt 0:03:25]} 23. Kxd2 {[%emt 0:00:09]} Rxb2+ {[%emt 0:00:11]} 24. Rc2 {[%emt 0:01:09]} Rxc2+ {[%emt 0:02:44]} 25. Kxc2 {[%emt 0:02:19][%mdl 4096] Endgame KRB-KRN} Bc4 {[%emt 0:01:30]} 26. a3 {[%emt 0:01:23]} f6 {[%emt 0:01:55]} 27. Rd1 {[%emt 0:01:01]} Kf7 {[%emt 0:00:26]} 28. Kd2 {[%emt 0:01:42]} Bb3 {[%emt 0:03:49]} 29. Rc1 {[%emt 0:03:03]} Rd7+ {[%emt 0:03:09]} 30. Ke3 {[%emt 0:00:19]} Rc7 {[%emt 0:04:30]} (30... Ke6 $17 31. Nb5 Rb7 32. Nc7+ Ke7) 31. Na2 $2 {[%emt 0:02:20][%mdl 8192]} Rxc1 {[%emt 0:00:56]} 32. Nxc1 {[%emt 0:00:09] KB-KN} Bc4 {[%emt 0:00:06]} 33. Kd2 {[%emt 0:00:16]} Ke6 {[%emt 0:01:00]} 34. Kc3 {[%emt 0:02:23]} Bf1 {[%emt 0:00:03]} 35. g3 {[%emt 0:00:18]} g6 {[%emt 0:00:22]} 36. Nb3 {[%emt 0:00:39]} f5 {[%emt 0:00:14]} 37. Nd2 {[%emt 0:00:49]} (37. Nc5+ {is the only way for White.} Kd6 38. Nb7+ Kc7 39. Nc5) 37... Bg2 {[%emt 0:01:05]} 38. exf5+ {[%emt 0:00:13]} gxf5 {[%emt 0:00:17]} 39. Kc4 {[%emt 0:03:24]} f4 {[%emt 0:01:30]} 40. Kd3 {[%emt 0:04:28]} Kf5 {[%emt 0:01:22] Hoping for ...fxg3.} 41. gxf4 {[%emt 0:16:27]} (41. Ke2 $142 Kg4 42. gxf4) 41... exf4 {[%emt 0:15:33]} 42. Ke2 {[%emt 0:02:15]} Bd5 {[%emt 0:01:55]} 43. Nb1 {[%emt 0:04:01]} Bc6 {[%emt 0:00:00]} 44. Nd2 {[%emt 0:00:00]} Ke5 {[%emt 0:00:00]} 45. Kd3 {[%emt 0:00:00]} (45. Nb3 $142 Bd5 46. Nc5) 45... Bb5+ {[%emt 0:00:00]} 46. Kc3 {[%emt 0:00:00]} Kf5 {[%emt 0:00:00]} 47. Kd4 {[%emt 0:00:00]} Bc6 {[%emt 0:00:00] Prevents Ne4. White must now prevent ...Kg4.} 48. Nc4 {[%emt 0:00:00]} Bg2 {[%emt 0:00:00]} 49. Ne5 {[%emt 0:00:00]} Bf1 {[%emt 0:00:00]} 50. Kd5 $2 {[%emt 0:00:00] [#]} (50. Nc6 $19) 50... f3 {[%emt 0:00:15]} 51. Kd4 {[%emt 0:00:00]} Kf4 {[%emt 0:00:07] ( -> ...f2)} 52. Nd3+ {[%emt 0:14:25][%mdl 32768] Weighted Error Value: White=0.63/Black=0.12 (very precise) . An unexpected result.} 1/2-1/2

[Event "GER-ch Youth-ODJM 2022 A"]
[Site "Willingen"]
[Date "2022.06.09"]
[Round "7.15"]
[White "Metzinger, Hannes"]
[Black "Kotyk, Michael"]
[Result "1/2-1/2"]
[ECO "A13"]
[WhiteElo "1845"]
[BlackElo "2197"]
[Annotator "TA"]
[PlyCount "89"]
[EventDate "2022.06.05"]
[EventType "swiss"]
[EventRounds "9"]
[EventCountry "GER"]
[SourceTitle "playchess.com"]
[Source "ChessBase"]
[SourceQuality "1"]
[TimeControl "40/4500+30:900+30"]

{[%evp 16,89,0,0,15,0,0,0,20,22,16,28,19,24,25,0,0,-11,95,100,93,104,166,187,189,181,202,197,191,176,166,148,152,65,161,147,185,185,185,181,153,107,163,141,139,161,170,165,164,154,150,158,152,60,89,64,117,68,90,90,90,0,0,0,0,0,33,0,13,0,0,0,0,0,0,0]} 1. c4 {[%emt 0:00:00]} e6 {[%emt 0:00:00]} 2. e4 {[%emt 0:00:00]} d5 {[%emt 0:00:00]} 3. exd5 {[%emt 0:00:00]} exd5 {[%emt 0:00:00]} 4. d4 {[%emt 0:00:00]} Nf6 {[%emt 0:00:00]} 5. Nc3 {[%emt 0:00:00]} Be7 {[%emt 0:00:00]} 6. Bd3 {[%emt 0:00:00]} dxc4 {[%emt 0:00:00]} 7. Bxc4 {[%emt 0:00:00]} O-O {[%emt 0:00:00]} 8. Nf3 {[%emt 0:00:00]} Bg4 {[%emt 0:00:00]} 9. Be3 {[%emt 0:00:00]} Nbd7 {[%emt 0:00:00] C01: French: Exchange Variation.} 10. O-O {[%emt 0:00:00]} Nb6 {[%emt 0:00:00]} 11. Bb3 {[%emt 0:00:00]} c6 {[%emt 0:00:00]} 12. h3 {[%emt 0:00:00]} Bh5 {[%emt 0:00:00]} 13. g4 {[%emt 0:00:00]} Bg6 {[%emt 0:00:00]} 14. Ne5 {[%emt 0:00:00]} Nfd5 {[%emt 0:00:52] [#]} 15. Qe2 $146 {[%emt 0:03:57]} ({Predecessor:} 15. Qf3 a5 16. a4 Bb4 17. Rac1 Qd6 18. Bd2 Nc7 19. Bf4 Ncd5 20. Nxg6 Qxg6 21. Nxd5 Nxd5 22. Bxd5 cxd5 23. Qxd5 {½-½ (59) Aghasiyev,K (2411)-Gusev,A (2400) Efremov 2017}) 15... a5 {[%emt 0:05:29]} 16. f4 {[%emt 0:05:10][%cal Bf2f4,Bf4f5][%mdl 32] Threatens to win with Nxd5.} a4 {[%emt 0:01:00]} (16... Nxc3 $11 17. bxc3 a4 18. Nxg6 hxg6) 17. Bxd5 $16 {[%emt 0:04:21]} Nxd5 {[%emt 0:00:10]} 18. f5 {[%emt 0:00:05]} f6 {[%emt 0:06:37]} (18... Nxe3 $16 {keeps fighting.} 19. Qxe3 Bg5) 19. Nxg6 $18 {[%emt 0:01:27]} (19. fxg6 $6 fxe5 20. dxe5 hxg6 $11) 19... hxg6 {[%emt 0:00:06]} 20. fxg6 {[%emt 0:00:04][%cal Og4g5] Black must now prevent g5!} Qe8 {[%emt 0:07:03]} 21. Nxd5 {[%emt 0:01:10]} cxd5 {[%emt 0:00:01]} 22. Qd3 {[%emt 0:00:44] Strongly threatening Qf5.} Bb4 {[%emt 0:01:31]} 23. Rac1 {[%emt 0:13:12][%cal Ba1c1,Bc1c7,Bc7b7][%mdl 32]} Qe6 {[%emt 0:04:38]} 24. Bf4 {[%emt 0:22:35]} (24. Rc7 $16) 24... Rfe8 {[%emt 0:11:06]} ({Black should play} 24... f5 $14) 25. Rc7 {[%emt 0:07:58]} Qe4 {[%emt 0:03:45]} 26. Qxe4 {[%emt 0:00:50]} Rxe4 {[%emt 0:00:01]} 27. Rxb7 {[%emt 0:00:18]} Rxd4 {[%emt 0:00:08]} 28. g5 {[%emt 0:00:50]} (28. Kg2 $142) 28... Rf8 {[%emt 0:02:10]} (28... a3 $16) 29. gxf6 {[%emt 0:06:40]} Rxf6 {[%emt 0:00:11]} 30. Rb8+ {[%emt 0:03:41]} Rf8 {[%emt 0:05:01][%cal Od4f4]} 31. Be5 {[%emt 0:01:45] White wants to mate with Rfxf8+.} Rxb8 {[%emt 0:02:28]} 32. Bxd4 {[%emt 0:00:06][%mdl 4096] Endgame Rf7 is the strong threat. KRB-KRB} Rc8 {[%emt 0:00:47]} 33. Rf7 {[%emt 0:00:56]} Bf8 {[%emt 0:00:01]} 34. Rf5 {[%emt 0:05:49] White is much more active.} (34. Ra7 $1 $16) 34... Rc4 {[%emt 0:00:09]} 35. Be5 {[%emt 0:01:41]} ({Wrong is} 35. Rxd5 $2 Rxd4 $1 {[%mdl 512]} 36. Rxd4 Bc5 $19) 35... d4 {[%emt 0:05:15]} (35... a3 $14) 36. Kf1 {[%emt 0:03:09]} (36. a3 $16) 36... Rc1+ {[%emt 0:01:32]} 37. Ke2 {[%emt 0:02:21]} Rc2+ {[%emt 0:00:01] [#]} 38. Kd3 {[%emt 0:00:06]} (38. Kf3 $1 $16) 38... Rxb2 $11 {[%emt 0:00:02]} 39. Bxd4 {[%emt 0:00:34]} Rxa2 {[%emt 0:05:00]} 40. Ra5 {[%emt 0:00:28]} Ra3+ {[%emt 0:06:27]} 41. Ke4 {[%emt 0:15:18] And now Ra8 would win.} Rg3 {[%emt 0:16:26] The position is equal.} ({Don't take} 41... Rxh3 42. Rxa4 Ra3 43. Rc4 $14) 42. Rxa4 {[%emt 0:01:39]} Rxg6 {[%emt 0:00:09]} 43. Ra8 {[%emt 0:00:08]} Kf7 {[%emt 0:01:44]} 44. Ra7+ {[%emt 0:00:08]} Kg8 {[%emt 0:00:27]} 45. Ra8 {[%emt 0:00:06] Black defended with fortune.  Weighted Error Value: White=0.15 (very precise) /Black=0.21 (precise)} 1/2-1/2